[Event "CCT Julius Baer-D2 2024"]
[Site "Online"]
[Date "2024.09.30"]
[Round "4"]
[White "So, Wesley"]
[Black "Martinez Alcantara, Jose Eduardo"]
[Result "1-0"]
[ECO "C42"]
[WhiteElo "2752"]
[BlackElo "2607"]
[Annotator "TA"]
[PlyCount "151"]
[EventDate "2024.09.25"]
[EventType "swiss"]
[EventCountry "NET"]
[SourceTitle "playchess.com"]
[Source "ChessBase"]
[SourceQuality "1"]
[TimeControl "600+2"]

1. e4 {[%emt 0:00:10]} e5 {[%emt 0:00:03]} 2. Nf3 {[%emt 0:00:01]} Nf6 {[%emt 0:00:03]} 3. Nxe5 {[%emt 0:00:01]} d6 {[%emt 0:00:02]} 4. Nf3 {[%emt 0:00:13]} Nxe4 {[%emt 0:00:01]} 5. d4 {[%emt 0:00:00]} Be7 {[%emt 0:00:05]} 6. Bd3 {[%emt 0:00:01]} d5 {[%emt 0:00:12]} 7. c4 {[%emt 0:00:32]} Nf6 {[%emt 0:00:14]} 8. O-O {[%emt 0:00:04]} O-O {[%emt 0:00:08]} 9. h3 {[%emt 0:00:05]} Nc6 {[%emt 0:00:05]} 10. Nc3 {[%emt 0:00:43]} Nb4 {[%emt 0:00:07]} 11. Be2 {[%emt 0:00:03]} dxc4 {[%emt 0:00:02]} 12. Bxc4 {[%emt 0:00:03]} c6 {[%emt 0:00:01]} 13. a3 {[%emt 0:00:11] C42: Petroff Defence: 3 Nxe5 and unusual White 3rd moves.} Nbd5 {[%emt 0:00:02]} 14. Re1 {[%emt 0:00:00]} Be6 {[%emt 0:00:20]} 15. Qb3 $5 {[%emt 0:01:18][%mdl 4] A promising side line.} b5 {[%emt 0:01:11]} 16. Nxd5 {[%emt 0:00:43]} Nxd5 {[%emt 0:00:16]} 17. Bf1 {[%emt 0:00:12]} Rc8 {[%emt 0:00:01]} 18. Bd2 $146 {[%emt 0:00:14]} ({Predecessor:} 18. Qc2 c5 19. Bxb5 Qb6 20. Bd3 h6 21. dxc5 Bxc5 22. Qe2 a5 23. Ne5 Rfd8 24. Bd2 {½-½ Watson,R-Hoegerl,F GER op 2007 email (1)}) 18... a6 {[%emt 0:00:06]} 19. a4 {[%emt 0:00:05]} Bf6 {[%emt 0:00:09]} 20. axb5 {[%emt 0:00:23]} axb5 {[%emt 0:00:00]} 21. Qc2 {[%emt 0:00:04]} Ne7 {[%emt 0:00:12]} 22. Bd3 {[%emt 0:00:16]} Ng6 {[%emt 0:00:04]} 23. Rxe6 {[%emt 0:01:02]} fxe6 {[%emt 0:00:22]} 24. Be3 {[%emt 0:00:00]} Qd7 {[%emt 0:00:24]} 25. Rd1 {[%emt 0:00:31]} Rfd8 {[%emt 0:00:04]} 26. h4 {[%emt 0:00:12]} Nf8 {[%emt 0:00:06]} 27. g3 {[%emt 0:00:14]} h6 {[%emt 0:00:08]} 28. Kg2 {[%emt 0:00:03]} Qd5 {[%emt 0:00:38]} 29. b3 {[%emt 0:00:21]} Qd7 {[%emt 0:00:13]} 30. Rd2 {[%emt 0:00:13]} Qf7 {[%emt 0:00:05]} 31. Be4 {[%emt 0:00:03]} Qh5 {[%emt 0:00:19]} 32. Rd1 {[%emt 0:00:10]} Kh8 {[%emt 0:00:15]} 33. Bg5 {[%emt 0:00:22]} Kg8 {[%emt 0:00:11]} 34. Be3 {[%emt 0:00:08]} Kh8 {[%emt 0:00:01]} 35. Rc1 {[%emt 0:00:13]} Kg8 {[%emt 0:02:08]} 36. Qe2 {[%emt 0:00:18]} Ng6 {[%emt 0:01:08]} 37. Kh3 {[%emt 0:00:42]} (37. Rxc6 $2 Nxh4+ 38. Kf1 Rxc6 39. Bxc6 Rd6 $19) 37... Nf8 {[%emt 0:00:35]} 38. g4 {[%emt 0:00:09]} Qe8 {[%emt 0:00:11]} 39. Kg2 {[%emt 0:00:08]} e5 {[%emt 0:00:21]} 40. dxe5 {[%emt 0:00:17]} Bxe5 {[%emt 0:00:00]} 41. Bxh6 {[%emt 0:00:01]} (41. Bf5 {simplifies} Bf4 42. Re1 Bxe3 43. Bxc8 Rxc8 44. Qxe3 Qxe3 45. Rxe3 c5 46. Ne5) 41... gxh6 {[%emt 0:00:20]} 42. Nxe5 $1 {[%emt 0:00:01]} Rd6 {[%emt 0:00:01] [#]} (42... Qxe5 $2 43. Bh7+ (43. Rxc6 $2 Kg7 $19) 43... Kxh7 44. Qxe5 $18) 43. Re1 {[%emt 0:00:12]} (43. Qe3 $1 $14 {is more appropriate.}) 43... Qe7 $11 {[%emt 0:00:17]} (43... Qxe5 $2 44. Bh7+ Nxh7 45. Qxe5 $18) 44. Nxc6 {[%emt 0:00:20]} (44. Qf3 $11) 44... Qxh4 $2 {[%emt 0:00:04][%mdl 8192] [#]} (44... Rcxc6 $15 45. Bxc6 Qxe2 (45... Qxh4 $2 {too greedy.} 46. Bxb5 Kh8 47. Bd3 $18) 46. Rxe2 Rxc6) 45. Ne7+ $1 $18 {[%emt 0:00:12]} (45. Qxb5 Qxg4+ 46. Kf1 Qh4 $17) 45... Qxe7 {[%emt 0:00:09]} 46. Bd5+ $1 {[%emt 0:00:00]} (46. Qxb5 $2 {perishes.} Qg5 47. Qxg5+ hxg5 $19) 46... Ne6 {[%emt 0:00:01]} 47. Bxe6+ {[%emt 0:00:01]} Rxe6 {[%emt 0:00:03]} 48. Qxe6+ {[%emt 0:00:00]} Qxe6 {[%emt 0:00:00]} 49. Rxe6 {[%emt 0:00:01]} Kg7 {[%emt 0:00:02]} 50. Re5 {[%emt 0:00:03]} Rb8 $2 {[%emt 0:00:02]} (50... b4 51. Rb5 Kg6 52. Rb6+ (52. Rxb4 h5 $18) 52... Kg7 53. Rxb4 h5 54. gxh5 Rc5) 51. b4 $18 {[%emt 0:00:03]} Rb6 {[%emt 0:00:01]} 52. Kg3 {[%emt 0:00:02]} Kg6 {[%emt 0:00:00]} 53. f4 {[%emt 0:00:02]} Kf6 {[%emt 0:00:01]} 54. Rh5 {[%emt 0:00:02]} Kg7 {[%emt 0:00:01]} 55. Rc5 {[%emt 0:00:01]} Kg6 {[%emt 0:00:01]} 56. Kh4 {[%emt 0:00:01]} Kg7 {[%emt 0:00:03]} 57. Kh5 {[%emt 0:00:03]} Kg8 {[%emt 0:00:00]} 58. f5 {[%emt 0:00:02]} Kg7 {[%emt 0:00:01]} 59. Re5 {[%emt 0:00:01]} Rd6 {[%emt 0:00:12]} 60. Rxb5 {[%emt 0:00:08]} Rd7 {[%emt 0:00:00]} 61. Rb6 {[%emt 0:00:02]} Rd4 {[%emt 0:00:01]} 62. Rxh6 {[%emt 0:00:06]} Rxb4 {[%emt 0:00:04]} 63. Rg6+ {[%emt 0:00:01]} Kf7 {[%emt 0:00:00]} 64. Kg5 {[%emt 0:00:01]} Rb1 {[%emt 0:00:00]} 65. Ra6 {[%emt 0:00:02]} Rb7 {[%emt 0:00:01]} 66. Ra5 {[%emt 0:00:01]} Kg7 {[%emt 0:00:00]} 67. Ra4 {[%emt 0:00:01]} Rf7 {[%emt 0:00:02]} 68. Ra6 {[%emt 0:00:04]} Rb7 {[%emt 0:00:01]} 69. Kh5 {[%emt 0:00:01]} Rf7 {[%emt 0:00:03]} 70. f6+ {[%emt 0:00:05]} Kh7 {[%emt 0:00:05]} 71. g5 {[%emt 0:00:01]} Rf8 {[%emt 0:00:03]} 72. g6+ {[%emt 0:00:02]} Kg8 {[%emt 0:00:01]} 73. Kh6 {[%emt 0:00:01]} Rb8 {[%emt 0:00:01]} 74. Ra7 {[%emt 0:00:01]} Rf8 {[%emt 0:00:04]} 75. f7+ {[%emt 0:00:03]} Rxf7 {[%emt 0:00:01]} 76. Rxf7 {[%emt 0:00:00]} 1-0

[Event "CCT Julius Baer-D2 2024"]
[Site "Online"]
[Date "2024.09.30"]
[Round "4"]
[White "Martinez Alcantara, Jose Eduardo"]
[Black "So, Wesley"]
[Result "0-1"]
[ECO "C67"]
[WhiteElo "2607"]
[BlackElo "2752"]
[Annotator "TA"]
[PlyCount "116"]
[EventDate "2024.09.25"]
[EventType "swiss"]
[EventCountry "NET"]
[SourceTitle "playchess.com"]
[Source "ChessBase"]
[SourceQuality "1"]
[TimeControl "600+2"]

{[%evp 15,116,9,18,11,11,0,0,0,0,0,6,0,14,13,20,0,12,0,0,0,0,0,-6,-13,-8,-16,-14,-16,-19,-22,-15,-21,-15,-25,-16,-21,-11,-24,-20,-22,-28,-18,-20,-31,0,-6,0,0,0,-87,-81,-82,-89,-70,-70,-1149,-1149,-1548,-1153,-1748,-1421,-2287,-1996,-2316,-2406,-29941,-29938,-29950,-29950,-29962,-29964,-29966,-29964,-29975,-29978,-29976,-29979,-29979,-29980,-29980,-29981,-29981,-29982,-29982,-29983,-29983,-29984,-29984,-29985,-29985,-29986,-29986,-29987,-29987,-29988,-29989,-29990,-29990,-29991,-29991,-29992,-29992,-5197]} 1. e4 {[%emt 0:00:19]} e5 {[%emt 0:00:07]} 2. Nf3 {[%emt 0:00:18]} Nc6 {[%emt 0:00:05]} 3. Bb5 {[%emt 0:00:05]} Nf6 {[%emt 0:00:01]} 4. O-O {[%emt 0:00:01][%cal Bh1f1,Bf1e1,Be1e5][%mdl 32]} Nxe4 {[%emt 0:00:01]} 5. Re1 {[%emt 0:00:03]} Nd6 {[%emt 0:00:02]} 6. Nxe5 {[%emt 0:00:08]} Be7 {[%emt 0:00:02]} 7. Bf1 {[%emt 0:00:05]} Nxe5 {[%emt 0:00:16]} 8. Rxe5 {[%emt 0:00:10]} O-O {[%emt 0:00:00]} 9. Re1 {[%emt 0:00:08]} Nf5 {[%emt 0:00:03]} 10. d4 {[%emt 0:00:01]} d5 {[%emt 0:00:02]} 11. c3 {[%emt 0:00:01] The position is equal.} Bd6 {[%emt 0:00:10]} 12. Nd2 {[%emt 0:00:02]} c6 {[%emt 0:00:02]} 13. Nf3 {[%emt 0:00:02]} Re8 {[%emt 0:00:04]} 14. Rxe8+ {[%emt 0:00:01]} Qxe8 {[%emt 0:00:00]} 15. Bd3 {[%emt 0:00:01]} f6 {[%emt 0:00:02]} 16. Bd2 {[%emt 0:00:03]} Qf7 {[%emt 0:00:07]} 17. Qc2 {[%emt 0:00:06]} g6 {[%emt 0:00:01]} 18. Re1 {[%emt 0:00:01]} Ng7 {[%emt 0:00:21]} 19. Qc1 {[%emt 0:00:18]} Bg4 {[%emt 0:00:19]} 20. Qd1 {[%emt 0:00:08]} Re8 {[%emt 0:00:09]} 21. h3 {[%emt 0:00:10]} Rxe1+ {[%emt 0:00:04]} 22. Bxe1 {[%emt 0:00:00]} Bf5 {[%emt 0:00:03]} 23. Bxf5 {[%emt 0:00:26]} Nxf5 {[%emt 0:00:00]} 24. Qe2 {[%emt 0:00:05]} h5 {[%emt 0:00:33]} 25. Bd2 {[%emt 0:00:09]} h4 {[%emt 0:00:12]} 26. Kf1 {[%emt 0:00:07]} g5 {[%emt 0:00:05]} 27. Ne1 {[%emt 0:00:11]} Kg7 {[%emt 0:00:07]} 28. Nd3 {[%emt 0:00:17]} Qg6 {[%emt 0:00:04]} 29. Ke1 {[%emt 0:00:09]} Ne7 {[%emt 0:00:28]} 30. Kd1 {[%emt 0:00:11]} Qe4 {[%emt 0:00:12]} 31. f4 {[%emt 0:00:58]} gxf4 {[%emt 0:01:20]} 32. Bxf4 {[%emt 0:02:34]} Bxf4 $17 {[%emt 0:00:05]} 33. Qxe4 {[%emt 0:00:02]} dxe4 {[%emt 0:00:00]} 34. Nxf4 {[%emt 0:00:03]} Nd5 {[%emt 0:00:19]} 35. Nxd5 {[%emt 0:01:50][%mdl 8192] This costs White the game.} (35. Ne6+ $15 Kf7 36. Nd8+ Ke7 37. Nxb7) 35... cxd5 $15 {[%emt 0:00:00][%mdl 4096] Endgame. KP-KP} 36. Ke2 {[%emt 0:00:01]} f5 {[%emt 0:00:08]} 37. Ke3 {[%emt 0:00:01]} b5 {[%emt 0:00:04]} 38. b3 {[%emt 0:00:04]} Kg6 {[%emt 0:00:18]} 39. Kf4 {[%emt 0:00:05]} Kf6 {[%emt 0:00:01]} 40. g4 {[%emt 0:00:37]} hxg3 {[%emt 0:00:00] Black mates.} 41. Kxg3 {[%emt 0:00:01]} e3 {[%emt 0:00:09]} 42. Kf3 {[%emt 0:00:21] [#]} f4 $1 {[%emt 0:00:00][%mdl 512]} 43. h4 {[%emt 0:00:07]} (43. a3 Kg5) 43... Kg6 $1 {[%emt 0:00:16]} (43... Kf5 44. h5 $11) 44. Ke2 {[%emt 0:00:10]} Kh5 {[%emt 0:00:11]} 45. c4 {[%emt 0:00:03]} bxc4 {[%emt 0:00:06]} 46. bxc4 {[%emt 0:00:00]} dxc4 {[%emt 0:00:00]} 47. d5 {[%emt 0:00:04]} c3 {[%emt 0:00:01]} (47... Kxh4 48. d6 Kg3 49. d7 f3+ 50. Kxe3 $14) 48. d6 {[%emt 0:00:09]} c2 {[%emt 0:00:02]} (48... Kxh4 49. d7 Kg5 50. d8=Q+ (50. d8=R Kf5 $18) 50... Kg6 51. Qc7 Kf5 52. Qxa7 (52. Qxc3 a5 53. Qxa5+ Kf6 54. Qd5 Ke7 55. a4 Kf6 56. a5 Ke7) 52... Kf6 53. Qd4+ Kg5 54. Qxc3 (54. Kf3 c2 55. Qxf4+ Kg6 56. Qxe3 Kg7 57. Qc3+ Kh6 58. Qxc2 Kg7)) 49. d7 {[%emt 0:00:01]} c1=Q {[%emt 0:00:00]} (49... c1=R $2 {too greedy.} 50. d8=Q (50. d8=R $2 Rc2+ 51. Kf3 Rf2+ 52. Ke4 e2 $19) 50... Rc2+ 51. Kf1 (51. Kf3 Rf2+ 52. Ke4 Kg4 $18) 51... Rf2+ 52. Kg1 $18) 50. d8=Q {[%emt 0:00:02] [#]} Qd2+ $1 {[%emt 0:00:18][%mdl 512]} 51. Qxd2 {[%emt 0:00:00]} exd2 {[%emt 0:00:00]} 52. Kxd2 {[%emt 0:00:00]} Kxh4 {[%emt 0:00:01] KPP-KP} 53. Ke2 {[%emt 0:00:01]} Kg3 {[%emt 0:00:01]} 54. Kf1 {[%emt 0:00:00]} f3 {[%emt 0:01:09]} 55. Kg1 {[%emt 0:00:04] [#]} f2+ $1 {[%emt 0:00:02]} 56. Kf1 {[%emt 0:00:02] [#]} Kf3 $1 {[%emt 0:00:00]} 57. a3 {[%emt 0:00:06]} Ke3 {[%emt 0:00:02]} 58. a4 {[%emt 0:00:01]} a5 {[%emt 0:00:01] Weighted Error Value: White=0.53/Black=0.08 (flawless) .  Loses game:     	White=1     	---        Mistake:       	White=1     	---        Inaccurate:     	White=1     	Black=1      OK:         	White=9     	Black=12     Best:        	White=1     	---} 0-1

[Event "CCT Julius Baer-D2 2024"]
[Site "Online"]
[Date "2024.10.01"]
[Round "5"]
[White "So, Wesley"]
[Black "Lazavik, Denis"]
[Result "0-1"]
[ECO "C55"]
[WhiteElo "2752"]
[BlackElo "2578"]
[Annotator "TA"]
[PlyCount "90"]
[EventDate "2024.09.25"]
[EventType "swiss"]
[EventCountry "NET"]
[SourceTitle "playchess.com"]
[Source "ChessBase"]
[SourceQuality "1"]
[TimeControl "600+2"]

{[%evp 9,89,8,27,9,16,14,20,-22,10,10,12,0,0,0,0,-21,-18,-48,-12,-48,-51,-70,-42,-68,-35,-52,0,-37,-39,-74,0,-18,-12,-27,39,32,70,0,150,133,141,131,238,245,637,781,888,850,1584,1145,29991,0,2101,1223,858,1199,1288,1152,4922,3114,6103,6719,29974,10782,5122,5106,9060,6999,29939,6790,29985,29986,29990,1222,1834,1870,29986,29987,29987,29988,29991,-29999]} 1. e4 {[%emt 0:00:05]} e5 {[%emt 0:00:03]} 2. Nf3 {[%emt 0:00:01]} Nc6 {[%emt 0:00:01]} 3. Bc4 {[%emt 0:00:01]} Nf6 {[%emt 0:00:01]} 4. d3 {[%emt 0:00:01]} Be7 {[%emt 0:00:01]} 5. Nc3 {[%emt 0:00:01]} O-O {[%emt 0:00:01]} 6. a3 {[%emt 0:00:03]} d6 {[%emt 0:00:01]} 7. Be3 {[%emt 0:00:00]} Be6 {[%emt 0:00:01]} 8. Ng5 {[%emt 0:00:01] The position is equal.} Bxc4 {[%emt 0:00:21]} 9. dxc4 {[%emt 0:00:00]} Nb8 {[%emt 0:00:09]} 10. h3 {[%emt 0:00:26]} Nbd7 {[%emt 0:00:02]} 11. Qe2 {[%emt 0:00:08]} c6 {[%emt 0:00:03]} 12. O-O-O {[%emt 0:00:14]} a6 {[%emt 0:00:04]} 13. f4 {[%emt 0:00:04]} Qa5 {[%emt 0:00:28]} 14. Bd2 {[%emt 0:00:29]} Qc7 $1 {[%emt 0:00:05]} 15. Nf3 {[%emt 0:00:49]} b5 {[%emt 0:00:03]} 16. g4 {[%emt 0:00:07]} Nb6 {[%emt 0:00:49]} 17. c5 $1 {[%emt 0:00:58]} Nc4 {[%emt 0:00:16]} (17... dxc5 $15 18. Nxe5 (18. fxe5 Nfd7 $19) 18... b4) 18. f5 {[%emt 0:01:10]} d5 {[%emt 0:00:52]} 19. exd5 {[%emt 0:00:38] And now d6 would win.} Nxd5 {[%emt 0:00:06]} (19... Bxc5 $17 {Hoping for ...Qd6.} 20. dxc6 Rfe8) 20. Ne4 $11 {[%emt 0:00:02] Dodges Qd6} Qa7 {[%emt 0:01:59]} 21. Qf2 {[%emt 0:00:42]} Rfb8 {[%emt 0:00:12]} ({Black should play} 21... Nf6 $11 22. Nfg5 Nd7 (22... h6 23. Nxf6+ Bxf6 24. Ne4 $16)) 22. b3 $14 {[%emt 0:00:55]} Nxa3 {[%emt 0:00:23]} 23. Ba5 {[%emt 0:00:03]} (23. g5 $1 $14 a5 24. Nxe5) 23... Bf8 {[%emt 0:03:39]} (23... f6 $11) 24. g5 $1 $16 {[%emt 0:00:59][%cal Bg4g5,Bg5g6,Bg6f7][%mdl 32] g6 would now be deadly.} (24. Nxe5 Qe7 25. Qd4 (25. Nxc6 Qxe4 26. Nxb8 Ne3 $16) 25... Re8 26. Nxc6 Qxe4 $16) 24... b4 {[%emt 0:00:11]} 25. g6 $1 {[%emt 0:00:06]} (25. Nxe5 $6 Qe7 26. Qg3 (26. Nxc6 Qxe4 27. Nxb8 Ne3 $11) 26... Re8 27. Rxd5 cxd5 28. Nf6+ (28. Bxb4 $2 Qxe5 29. Qxe5 Rxe5 $19) 28... Kh8 $11) 25... Rb5 {[%emt 0:00:32]} (25... Nc3 $16 {was necessary.}) 26. Nxe5 $18 {[%emt 0:00:06]} Qe7 {[%emt 0:00:20]} (26... hxg6 27. Nxc6 Qb7) 27. gxf7+ {[%emt 0:00:51]} Kh8 {[%emt 0:00:01] [#]} 28. Qg3 $1 {[%emt 0:00:12][%cal Od1d5]} Rxa5 {[%emt 0:00:06]} (28... Nf6 29. Bd8) 29. Ng5 {[%emt 0:00:27][%cal Oe5g6]} g6 {[%emt 0:00:05] [#]} 30. Rxd5 $2 {[%emt 0:00:27]} Nc4 $2 {[%emt 0:00:03][%mdl 8192]} (30... Bh6 $11 31. h4 (31. Nxc6 $2 Bxg5+ 32. Kd1 Qxf7 $19) 31... cxd5) 31. bxc4 {[%emt 0:00:11][%cal Oe5g6] White wants to mate with Nxg6+!} Bh6 {[%emt 0:00:03]} 32. Nxc6 {[%emt 0:00:30]} Ra1+ {[%emt 0:00:02]} 33. Kb2 {[%emt 0:00:06]} Qf6+ {[%emt 0:00:01]} 34. Qe5 {[%emt 0:00:08]} Bg7 {[%emt 0:00:01]} 35. Rxa1 {[%emt 0:00:06] White threatens Ne6 and mate.} Qxc6 {[%emt 0:00:01] [#]} 36. Re1 $1 {[%emt 0:00:02][%cal Od5d6] Threatening mate with Rd6!} Bxe5+ {[%emt 0:00:01]} (36... b3 37. f6) 37. Rexe5 {[%emt 0:00:00] Re6 would kill now.} Qf6 {[%emt 0:00:01]} 38. fxg6 {[%emt 0:00:04]} hxg6 {[%emt 0:00:02] [#]} 39. c6 $1 {[%emt 0:00:01]} Rf8 {[%emt 0:00:04]} (39... Kg7 40. c7) 40. c7 {[%emt 0:00:01]} Kg7 {[%emt 0:00:01]} 41. Kb3 {[%emt 0:00:04]} (41. Ne6+ $142 Qxe6 42. Rxe6 Kxf7 43. Rb6 (43. Rxa6 Ke7 44. Rxg6 Rc8 45. Rg7+ Kf6 46. Rd8 Rxd8 47. cxd8=Q+ Kxg7) 43... Kg7 44. Rb8 (44. Rxa6 Rc8 $18) 44... b3 45. Rxf8 (45. c8=B bxc2 46. Kxc2 Rf2+ 47. Rd2 Rf6 $18) 45... bxc2 46. c8=Q) 41... Kh6 {[%emt 0:00:03]} 42. Ne6 {[%emt 0:00:02]} Qf1 {[%emt 0:00:03]} 43. Nxf8 {[%emt 0:00:02]} Qb1+ {[%emt 0:00:02]} 44. Ka4 {[%emt 0:00:00]} Qb2 {[%emt 0:00:04]} 45. Re4 $4 {[%emt 0:00:03][%mdl 8192]} (45. c8=R $2 Qa3#) (45. Ka5 {avoids the disaster.} Qa1+ 46. Kb6 Qf1 47. c8=Q (47. c8=R Qxf7 48. Ne6 g5 49. Rxg5 Qxe6+ 50. Rc6 Qxc6+ 51. Kxc6 Kh7 52. Rg2 Kh6 53. Ra5 b3 54. cxb3 Kh7 55. Rh5#) 47... Qxf7 48. Rd7 (48. Kxa6 b3 49. Ne6 Qf6 50. Rd7 Qxe6+ 51. Rxe6 Kg5 52. Qg8 Kh4 53. Qxg6 Kxh3 54. Rh7#) (48. Ka5 Qf6 49. Nxg6 Kh7 50. Rh5+ Kxg6 51. Qg8+ Qg7 52. Qe6+ Qf6 53. Rdg5#) 48... Qf6+ 49. Ka7 Qf2+ 50. c5 (50. Kxa6 Qf6+ 51. Ne6 Qxe6+ 52. Rxe6 Kg5 53. Qd8+ Kf4 54. Rd3 g5 55. Qf8#) (50. Rc5 Qf5 51. Rxf5 gxf5 52. Qd8 Kh5 53. Rh7#) 50... Qf5 51. Rh7+ (51. Rxf5 gxf5 52. Qd8 Kh5 53. Rh7#) 51... Kg5 52. Ne6+ Kf6 53. Qh8#) 45... Qa3# {[%emt 0:00:01] Weighted Error Value: White=0.29 (precise) /Black=0.92.  Mistake:       	White=1     	Black=6      Inaccurate:     	White=5     	Black=4      OK:         	White=5     	Black=5      Best:        	White=1     	Black=1      Strong:       	White=3     	Black=1} 0-1

[Event "CCT Julius Baer-D2 2024"]
[Site "Online"]
[Date "2024.10.01"]
[Round "5"]
[White "So, Wesley"]
[Black "Lazavik, Denis"]
[Result "1-0"]
[ECO "C54"]
[WhiteElo "2752"]
[BlackElo "2578"]
[Annotator "TA"]
[PlyCount "89"]
[EventDate "2024.09.25"]
[EventType "swiss"]
[EventCountry "NET"]
[SourceTitle "playchess.com"]
[Source "ChessBase"]
[SourceQuality "1"]
[TimeControl "600+2"]

{[%evp 18,89,18,17,27,5,0,0,19,14,25,17,14,0,0,0,135,136,170,154,288,301,321,112,109,17,195,216,219,185,165,188,348,260,244,258,279,262,261,269,275,261,264,233,299,325,332,331,340,331,333,345,455,442,478,466,485,482,602,601,569,589,741,740,729,707,1700,866,866,862,830,830,5469,5469]} 1. e4 {[%emt 0:00:04]} e5 {[%emt 0:00:05]} 2. Nf3 {[%emt 0:00:03]} Nc6 {[%emt 0:00:03]} 3. Bc4 {[%emt 0:00:03]} Bc5 {[%emt 0:03:02]} 4. O-O {[%emt 0:00:05]} Nf6 {[%emt 0:00:02]} 5. d3 {[%emt 0:00:03]} d6 {[%emt 0:00:04]} 6. c3 {[%emt 0:00:03]} a6 {[%emt 0:00:03]} 7. Re1 {[%emt 0:00:05]} Ba7 {[%emt 0:00:04]} 8. Bb3 {[%emt 0:00:07]} h6 {[%emt 0:00:05]} 9. Nbd2 {[%emt 0:00:06][%cal Bb1d2,Bd2f1,Bf1g3,Bg3f5][%mdl 32]} O-O {[%emt 0:00:04]} 10. Nf1 {[%emt 0:00:07]} Be6 {[%emt 0:00:03]} 11. Bc2 {[%emt 0:00:11]} Re8 {[%emt 0:00:11]} 12. Ng3 {[%emt 0:00:06]} d5 {[%emt 0:00:07] The position is equal.} 13. exd5 {[%emt 0:00:02]} Bxd5 {[%emt 0:00:09]} 14. h3 {[%emt 0:00:08]} Qd6 {[%emt 0:00:05]} 15. Nf5 {[%emt 0:00:09]} Qd7 {[%emt 0:00:06]} 16. N3h4 {[%emt 0:00:04][%cal Oc1h6]} Rad8 {[%emt 0:01:02] [#]} (16... Kh8 $11) 17. Bxh6 $1 $16 {[%emt 0:01:22][%mdl 512]} gxh6 {[%emt 0:00:04]} (17... g6 18. Ne3) 18. Qd2 {[%emt 0:00:03]} Be6 {[%emt 0:00:16]} (18... Ne7 $16 {is a better defense.} 19. Nxh6+ Kf8) 19. d4 $18 {[%emt 0:00:10]} e4 {[%emt 0:00:44]} (19... exd4 $2 20. Qxh6 (20. Nxh6+ Kh8 $18) 20... Bxf5 21. Nxf5 $18 (21. Bxf5 Qd6 $11) (21. Bxf5 Qd6 $11)) 20. Qxh6 $2 {[%emt 0:00:52]} (20. Nxh6+ $18 {is more deadly.} Kh8 21. Qf4 (21. Bxe4 Nxe4 22. Rxe4 f5 $11)) 20... Bxf5 $16 {[%emt 0:00:04] [#]} 21. Qxf6 {[%emt 0:00:03]} (21. Re3 $1 $16 {[%cal Re3g3] Rg3+ would now be deadly.} Bg6 22. Bb3) 21... Bg6 $2 {[%emt 0:00:29] A mistake that costs the game.} 22. Nxg6 $18 {[%emt 0:00:17]} fxg6 {[%emt 0:00:04]} 23. Bb3+ $40 {[%emt 0:00:05][%mdl 128] White wants a kill.} ({But not} 23. Bxe4 $6 Qf7 24. Qxg6+ Qxg6 25. Bxg6 Rxe1+ 26. Rxe1 Na5) 23... Kh7 {[%emt 0:00:06]} 24. Bf7 {[%emt 0:00:03]} Qd6 $2 {[%emt 0:00:05]} (24... Qf5 25. Qh4+ Kg7 26. Bxe8 Rxe8) 25. Qh4+ {[%emt 0:00:33]} Kg7 {[%emt 0:00:04]} 26. Bxe8 {[%emt 0:00:02]} Rxe8 {[%emt 0:00:06]} 27. Rxe4 {[%emt 0:00:02]} Rxe4 {[%emt 0:00:22]} 28. Qxe4 {[%emt 0:00:03]} Qe7 {[%emt 0:00:15]} 29. Qf3 {[%emt 0:00:14]} (29. Qxe7+ Nxe7 30. Kf1 a5 $14) 29... Nd8 {[%emt 0:00:05]} 30. Kf1 {[%emt 0:00:11]} c5 {[%emt 0:00:10]} 31. Re1 {[%emt 0:00:13]} Qf7 {[%emt 0:00:05]} 32. Qxf7+ {[%emt 0:00:10]} Kxf7 {[%emt 0:00:05]} 33. d5 {[%emt 0:00:05][%cal Bd4d5,Bd5d6,Bd6d7][%mdl 32]} Bb8 {[%emt 0:00:05]} 34. c4 {[%emt 0:00:08]} Kf6 {[%emt 0:00:05]} 35. Re8 {[%emt 0:00:08] White is clearly winning.} Bc7 {[%emt 0:00:07] [#]} 36. d6 $1 {[%emt 0:00:03]} Bb6 {[%emt 0:00:08]} 37. h4 {[%emt 0:00:06]} Nc6 {[%emt 0:00:11]} 38. d7 {[%emt 0:00:05]} Bd8 {[%emt 0:00:05]} 39. g4 {[%emt 0:00:10][%cal Bg2g4,Bg4g5,Bg5g6,Bg6g7][%mdl 32]} Kg7 {[%emt 0:00:11]} 40. g5 {[%emt 0:00:15]} Kf7 {[%emt 0:00:03]} 41. f4 {[%emt 0:00:04]} Be7 {[%emt 0:00:03]} 42. Kg2 {[%emt 0:00:05][%cal Oh4h5] aiming for h5!} Ke6 {[%emt 0:00:05] [#]} 43. h5 $1 {[%emt 0:00:21]} gxh5 {[%emt 0:00:05]} 44. g6 {[%emt 0:00:04]} Kf6 {[%emt 0:00:30] [#]} 45. g7 $1 {[%emt 0:00:05][%mdl 512] Weighted Error Value: White=0.24 (precise) /Black=0.53.  Loses game:     	---       	Black=1      Missed win:     	White=1     	---        Mistake:       	White=1     	Black=3      Inaccurate:     	---       	Black=1      OK:         	White=16    	Black=7      Best:        	White=1     	Black=2} 1-0